[Event "*** Titled Tuesday Blitz"]
[Site "Chess.com"]
[Date "2019.02.05"]
[Round "9"]
[White "Walter_White_Poland"]
[Black "SimonKnightRivendell"]
[Result "1-0"]
[WhiteElo "2182"]
[BlackElo "2015"]
[TimeControl "180+2"]
[EndTime "15:11:29 PST"]
[Termination "Walter_White_Poland won by resignation"]

1. e4 {[%clk 0:03:01.9]} 1... c6 {[%clk 0:03:00.8]} 2. d4 {[%clk 0:03:01.9]}
2... d5 {[%clk 0:03:01.8]} 3. Nc3 {[%clk 0:03:03]} 3... dxe4 {[%clk 0:03:02.3]}
4. Nxe4 {[%clk 0:03:04.2]} 4... Bf5 {[%clk 0:03:03.2]} 5. Ng3 {[%clk 0:03:05.3]}
5... Bg6 {[%clk 0:03:04.3]} 6. h4 {[%clk 0:03:04.7]} 6... h6 {[%clk 0:03:05.2]}
7. Nf3 {[%clk 0:03:05.7]} 7... Nd7 {[%clk 0:03:06.1]} 8. h5 {[%clk 0:03:06]}
8... Bh7 {[%clk 0:03:07.1]} 9. Bd3 {[%clk 0:03:07.6]} 9... Bxd3 {[%clk
0:03:07.9]} 10. Qxd3 {[%clk 0:03:08.3]} 10... e6 {[%clk 0:03:09]} 11. Bd2 {[%clk
0:03:06.5]} 11... Qc7 {[%clk 0:03:08.4]} 12. O-O-O {[%clk 0:03:06.1]} 12... Ngf6
{[%clk 0:03:09]} 13. Kb1 {[%clk 0:02:55.4]} 13... O-O-O {[%clk 0:03:09.4]} 14.
c4 {[%clk 0:02:52.2]} 14... Be7 {[%clk 0:03:09.3]} 15. Bc3 {[%clk 0:02:49.2]}
15... Kb8 {[%clk 0:02:59.2]} 16. Ne4 {[%clk 0:02:47.3]} 16... Nxe4 {[%clk
0:02:57.3]} 17. Qxe4 {[%clk 0:02:48.3]} 17... Bf6 {[%clk 0:02:43.6]} 18. Rhe1
{[%clk 0:02:00.5]} 18... c5 {[%clk 0:02:25.7]} 19. Qe3 {[%clk 0:01:41.9]} 19...
cxd4 {[%clk 0:02:22.9]} 20. Bxd4 {[%clk 0:01:41.4]} 20... Bxd4 {[%clk 0:02:19]}
21. Rxd4 {[%clk 0:01:16.2]} 21... Nc5 {[%clk 0:02:03.4]} 22. Red1 {[%clk
0:01:07.5]} 22... Rxd4 {[%clk 0:01:59.3]} 23. Qxd4 {[%clk 0:01:05.8]} 23... f6
{[%clk 0:01:55.1]} 24. b4 {[%clk 0:01:00.4]} 24... Na6 {[%clk 0:01:55.6]} 25. a3
{[%clk 0:00:58.3]} 25... Rc8 {[%clk 0:01:43.9]} 26. c5 {[%clk 0:00:57.3]} 26...
Qc6 {[%clk 0:01:42.6]} 27. Qd6+ {[%clk 0:00:55.2]} 27... Ka8 {[%clk 0:01:41.5]}
28. Qxc6 {[%clk 0:00:53.6]} 28... Rxc6 {[%clk 0:01:35.8]} 29. Rd8+ {[%clk
0:00:53.1]} 29... Nb8 {[%clk 0:01:36.7]} 30. Nd4 {[%clk 0:00:53.6]} 30... Ra6
{[%clk 0:01:35.5]} 31. Kb2 {[%clk 0:00:43.8]} 31... b6 {[%clk 0:01:30.4]} 32. c6
{[%clk 0:00:41.4]} 1-0

[Event "*** Titled Tuesday Blitz"]
[Site "Chess.com"]
[Date "2019.02.05"]
[Round "9"]
[White "sergeikim"]
[Black "DanielMieles1985"]
[Result "0-1"]
[WhiteElo "2463"]
[BlackElo "2593"]
[TimeControl "180+2"]
[EndTime "15:11:32 PST"]
[Termination "DanielMieles1985 won by resignation"]

1. d4 {[%clk 0:03:01.9]} 1... d5 {[%clk 0:03:01]} 2. c4 {[%clk 0:03:02.8]} 2...
c6 {[%clk 0:03:02.3]} 3. Nf3 {[%clk 0:03:03.1]} 3... Nf6 {[%clk 0:03:03]} 4. Qc2
{[%clk 0:03:04.1]} 4... g6 {[%clk 0:02:59.8]} 5. e3 {[%clk 0:03:04.4]} 5... Bd7
{[%clk 0:02:53.9]} 6. Bd3 {[%clk 0:02:58.8]} 6... Bg7 {[%clk 0:02:52]} 7. O-O
{[%clk 0:02:58.3]} 7... O-O {[%clk 0:02:53.6]} 8. Nbd2 {[%clk 0:02:58.4]} 8...
Na6 {[%clk 0:02:54.1]} 9. a3 {[%clk 0:02:58.7]} 9... dxc4 {[%clk 0:02:55.2]} 10.
Nxc4 {[%clk 0:02:58.5]} 10... Rc8 {[%clk 0:02:55.6]} 11. b4 {[%clk 0:02:56.5]}
11... Bg4 {[%clk 0:02:55.4]} 12. Bb2 {[%clk 0:02:55.3]} 12... Be6 {[%clk
0:02:57.3]} 13. Rfd1 {[%clk 0:02:50.7]} 13... Bg4 {[%clk 0:02:57.6]} 14. Nce5
{[%clk 0:02:47.4]} 14... Bxf3 {[%clk 0:02:56.7]} 15. Nxf3 {[%clk 0:02:47.7]}
15... Nc7 {[%clk 0:02:57.9]} 16. e4 {[%clk 0:02:45.5]} 16... Nh5 {[%clk
0:02:58.9]} 17. g3 {[%clk 0:02:42.3]} 17... Nb5 {[%clk 0:02:58.9]} 18. Bf1
{[%clk 0:02:40.1]} 18... Qd7 {[%clk 0:02:55.3]} 19. Bg2 {[%clk 0:02:39]} 19...
Rfd8 {[%clk 0:02:54.3]} 20. h3 {[%clk 0:02:34.6]} 20... Qe6 {[%clk 0:02:49]} 21.
a4 {[%clk 0:02:22.9]} 21... Nd6 {[%clk 0:02:48.5]} 22. e5 {[%clk 0:02:08.5]}
22... Nc4 {[%clk 0:02:48.3]} 23. Bc3 {[%clk 0:02:05.5]} 23... a6 {[%clk
0:02:46.2]} 24. Qc1 {[%clk 0:01:54.6]} 24... f5 {[%clk 0:02:47.4]} 25. Ng5
{[%clk 0:01:43.1]} 25... Qd7 {[%clk 0:02:43.9]} 26. a5 {[%clk 0:01:40.9]} 26...
e6 {[%clk 0:02:42.7]} 27. Be1 {[%clk 0:01:36.7]} 27... Bh6 {[%clk 0:02:40.4]}
28. h4 {[%clk 0:01:34.7]} 28... Bxg5 {[%clk 0:02:41.4]} 29. hxg5 {[%clk
0:01:35.2]} 29... b5 {[%clk 0:02:40.4]} 30. axb6 {[%clk 0:01:33.5]} 30... Nxb6
{[%clk 0:02:42.3]} 31. Rxa6 {[%clk 0:01:33.6]} 31... Nd5 {[%clk 0:02:42.7]} 32.
Qc5 {[%clk 0:01:28.4]} 32... f4 {[%clk 0:02:41.3]} 33. g4 {[%clk 0:01:19]} 33...
f3 {[%clk 0:02:36.1]} 34. Bxf3 {[%clk 0:01:08.5]} 34... Nhf4 {[%clk 0:02:37.5]}
35. Ra7 {[%clk 0:00:56.5]} 35... Rc7 {[%clk 0:02:33.7]} 36. Rxc7 {[%clk
0:00:56]} 36... Qxc7 {[%clk 0:02:35.6]} 37. Rc1 {[%clk 0:00:49.6]} 37... Qf7
{[%clk 0:02:35.7]} 38. Bxd5 {[%clk 0:00:41.7]} 38... Rxd5 {[%clk 0:02:35.7]} 39.
Qxc6 {[%clk 0:00:41.5]} 39... Ne2+ {[%clk 0:02:35.7]} 40. Kf1 {[%clk 0:00:41.4]}
40... Nxc1 {[%clk 0:02:35.9]} 41. Qxc1 {[%clk 0:00:42.2]} 41... Rxd4 {[%clk
0:02:37.3]} 42. b5 {[%clk 0:00:38.8]} 42... Qb7 {[%clk 0:02:35.6]} 43. Qc5
{[%clk 0:00:36.5]} 43... Qh1+ {[%clk 0:02:29.9]} 44. Ke2 {[%clk 0:00:37.4]}
44... Qe4+ {[%clk 0:02:31.4]} 45. Kf1 {[%clk 0:00:38.2]} 45... Qd3+ {[%clk
0:02:33]} 46. Kg2 {[%clk 0:00:34.9]} 46... Rxg4+ {[%clk 0:02:34.5]} 47. Kh2
{[%clk 0:00:34.8]} 47... Rh4+ {[%clk 0:02:35.8]} 48. Kg2 {[%clk 0:00:35.3]}
48... Qh3+ {[%clk 0:02:36.3]} 0-1

[Event "*** Titled Tuesday Blitz"]
[Site "Chess.com"]
[Date "2019.02.05"]
[Round "9"]
[White "sandager"]
[Black "ChessMavenYeti"]
[Result "0-1"]
[WhiteElo "2129"]
[BlackElo "2241"]
[TimeControl "180+2"]
[EndTime "15:11:35 PST"]
[Termination "ChessMavenYeti won on time"]

1. d4 {[%clk 0:02:57.4]} 1... e6 {[%clk 0:03:01.9]} 2. e4 {[%clk 0:02:57.5]}
2... d5 {[%clk 0:03:01.5]} 3. Nc3 {[%clk 0:02:58.4]} 3... Bb4 {[%clk 0:03:01.5]}
4. e5 {[%clk 0:02:59.4]} 4... c5 {[%clk 0:03:01.9]} 5. a3 {[%clk 0:03:00.8]}
5... Ba5 {[%clk 0:03:03.1]} 6. b4 {[%clk 0:03:01.1]} 6... cxd4 {[%clk 0:03:04]}
7. Nb5 {[%clk 0:02:59.1]} 7... Bc7 {[%clk 0:03:04.1]} 8. Nf3 {[%clk 0:02:58.8]}
8... Nc6 {[%clk 0:02:58.7]} 9. Bf4 {[%clk 0:02:57.5]} 9... Nge7 {[%clk
0:02:56.6]} 10. Nbxd4 {[%clk 0:02:56.9]} 10... Nxd4 {[%clk 0:02:50.1]} 11. Qxd4
{[%clk 0:02:53.5]} 11... Nc6 {[%clk 0:02:44.3]} 12. Qd2 {[%clk 0:02:49.7]} 12...
f6 {[%clk 0:02:39.5]} 13. exf6 {[%clk 0:02:45.7]} 13... Qxf6 {[%clk 0:02:39.9]}
14. Bxc7 {[%clk 0:02:23.6]} 14... Qxa1+ {[%clk 0:02:40.1]} 15. Ke2 {[%clk
0:02:21.4]} 15... O-O {[%clk 0:02:38.3]} 16. g3 {[%clk 0:02:20.1]} 16... b6
{[%clk 0:02:33.3]} 17. Bg2 {[%clk 0:02:15.1]} 17... Ba6+ {[%clk 0:02:34.2]} 18.
Ke3 {[%clk 0:02:09.8]} 18... Qf6 {[%clk 0:02:22.2]} 19. h4 {[%clk 0:02:02.7]}
19... d4+ {[%clk 0:02:19.7]} 20. Nxd4 {[%clk 0:01:15.9]} 20... Ne5 {[%clk
0:02:15.6]} 21. Bxe5 {[%clk 0:00:42.1]} 21... Qxe5+ {[%clk 0:02:13.8]} 22. Be4
{[%clk 0:00:43.4]} 22... Rad8 {[%clk 0:02:03.1]} 23. c3 {[%clk 0:00:33.2]} 23...
Qf6 {[%clk 0:02:00.1]} 24. Qc2 {[%clk 0:00:15.5]} 24... h6 {[%clk 0:01:47.3]}
25. f4 {[%clk 0:00:15.4]} 25... e5 {[%clk 0:01:48.1]} 26. Ne2 {[%clk 0:00:14.2]}
26... Qd6 {[%clk 0:01:43.5]} 27. c4 {[%clk 0:00:08.7]} 27... exf4+ {[%clk
0:01:38.4]} 28. Nxf4 {[%clk 0:00:09.2]} 28... Qd4+ {[%clk 0:01:39.1]} 29. Kf3
{[%clk 0:00:05.8]} 29... Bxc4 {[%clk 0:01:37.7]} 0-1

[Event "*** Titled Tuesday Blitz"]
[Site "Chess.com"]
[Date "2019.02.05"]
[Round "9"]
[White "HajiyevKanan"]
[Black "CM_Perligero"]
[Result "1-0"]
[WhiteElo "2339"]
[BlackElo "2194"]
[TimeControl "180+2"]
[EndTime "15:11:38 PST"]
[Termination "HajiyevKanan won on time"]

1. d4 {[%clk 0:03:01.9]} 1... d5 {[%clk 0:00:55.6]} 2. Nf3 {[%clk 0:03:03.8]}
2... c6 {[%clk 0:00:56]} 3. c4 {[%clk 0:03:03.2]} 3... Nf6 {[%clk 0:00:57.5]} 4.
cxd5 {[%clk 0:03:05.1]} 4... cxd5 {[%clk 0:00:58.3]} 5. Nc3 {[%clk 0:03:07]}
5... Nc6 {[%clk 0:00:59.5]} 6. Bf4 {[%clk 0:03:08.1]} 6... e6 {[%clk 0:00:59.7]}
7. e3 {[%clk 0:03:09.3]} 7... Bb4 {[%clk 0:01:00.8]} 8. Bd3 {[%clk 0:03:09.9]}
8... Qa5 {[%clk 0:01:01.8]} 9. Qc2 {[%clk 0:03:10.7]} 9... Ne4 {[%clk
0:01:01.5]} 10. Bxe4 {[%clk 0:03:12.2]} 10... dxe4 {[%clk 0:01:02.7]} 11. Nd2
{[%clk 0:03:14.1]} 11... f5 {[%clk 0:00:58.5]} 12. O-O {[%clk 0:03:14.8]} 12...
O-O {[%clk 0:00:58.4]} 13. Nc4 {[%clk 0:03:09.9]} 13... Qd8 {[%clk 0:00:58.3]}
14. a3 {[%clk 0:03:10.5]} 14... Be7 {[%clk 0:00:58.4]} 15. b4 {[%clk 0:03:06.9]}
15... Bf6 {[%clk 0:00:56.8]} 16. Nb5 {[%clk 0:03:04]} 16... a6 {[%clk
0:00:44.4]} 17. Nbd6 {[%clk 0:03:01]} 17... b5 {[%clk 0:00:45.4]} 18. Nxc8
{[%clk 0:02:53]} 18... Rxc8 {[%clk 0:00:38.8]} 19. Nd6 {[%clk 0:02:47.5]} 19...
Rc7 {[%clk 0:00:36.7]} 20. Rac1 {[%clk 0:02:41]} 20... e5 {[%clk 0:00:31.7]} 21.
dxe5 {[%clk 0:02:36.4]} 21... Bxe5 {[%clk 0:00:15.8]} 22. Bxe5 {[%clk 0:02:36]}
22... Nxe5 {[%clk 0:00:16.8]} 23. Qxc7 {[%clk 0:02:37.1]} 23... Qg5 {[%clk
0:00:14.4]} 24. Kh1 {[%clk 0:02:07.7]} 24... Qh4 {[%clk 0:00:12.9]} 25. Nxf5
{[%clk 0:01:48]} 25... Rxf5 {[%clk 0:00:11.4]} 26. Qc8+ {[%clk 0:01:49.3]} 26...
Rf8 {[%clk 0:00:11.2]} 27. Qe6+ {[%clk 0:01:50.9]} 27... Nf7 {[%clk 0:00:11.6]}
28. Rc8 {[%clk 0:01:45.7]} 28... h6 {[%clk 0:00:09]} 29. Rfc1 {[%clk 0:01:39.2]}
1-0

[Event "*** Titled Tuesday Blitz"]
[Site "Chess.com"]
[Date "2019.02.05"]
[Round "9"]
[White "ezkybel"]
[Black "Caisachess"]
[Result "1-0"]
[WhiteElo "2267"]
[BlackElo "2346"]
[TimeControl "180+2"]
[EndTime "15:11:59 PST"]
[Termination "ezkybel won by resignation"]

1. e4 {[%clk 0:03:01.9]} 1... e5 {[%clk 0:03:00.7]} 2. Nf3 {[%clk 0:03:01.8]}
2... Nc6 {[%clk 0:03:01.7]} 3. Nc3 {[%clk 0:02:58.7]} 3... Nf6 {[%clk
0:03:02.4]} 4. d4 {[%clk 0:02:59.9]} 4... exd4 {[%clk 0:03:02.8]} 5. Nd5 {[%clk
0:03:01.1]} 5... d6 {[%clk 0:02:44]} 6. Nxd4 {[%clk 0:02:54.5]} 6... Nxd4 {[%clk
0:02:43.9]} 7. Qxd4 {[%clk 0:02:54.9]} 7... Nxd5 {[%clk 0:02:45.4]} 8. exd5
{[%clk 0:02:55.9]} 8... Qe7+ {[%clk 0:02:39.8]} 9. Be3 {[%clk 0:02:55.5]} 9...
Qe5 {[%clk 0:02:39.5]} 10. Qxe5+ {[%clk 0:02:53.6]} 10... dxe5 {[%clk
0:02:40.7]} 11. O-O-O {[%clk 0:02:54.7]} 11... Bd6 {[%clk 0:02:39.3]} 12. c4
{[%clk 0:02:54.1]} 12... b6 {[%clk 0:02:32.3]} 13. g3 {[%clk 0:02:50.8]} 13...
Bg4 {[%clk 0:02:29.5]} 14. Re1 {[%clk 0:02:43.5]} 14... O-O {[%clk 0:02:28.4]}
15. Bg2 {[%clk 0:02:38.6]} 15... Rad8 {[%clk 0:02:25.4]} 16. a3 {[%clk
0:02:38.1]} 16... a5 {[%clk 0:02:24]} 17. h4 {[%clk 0:02:31.4]} 17... Bf5 {[%clk
0:02:16.1]} 18. Bd2 {[%clk 0:02:17.7]} 18... Bd3 {[%clk 0:02:15.5]} 19. Bf1
{[%clk 0:02:14.1]} 19... Bxf1 {[%clk 0:02:11.5]} 20. Rhxf1 {[%clk 0:02:14.5]}
20... f5 {[%clk 0:02:12.7]} 21. Bc3 {[%clk 0:02:14.6]} 21... Rfe8 {[%clk
0:02:14]} 22. Re2 {[%clk 0:02:13.2]} 22... a4 {[%clk 0:02:12.5]} 23. Rfe1 {[%clk
0:02:01]} 23... e4 {[%clk 0:02:13.6]} 24. h5 {[%clk 0:01:39.1]} 24... h6 {[%clk
0:02:06.2]} 25. Kc2 {[%clk 0:01:39.5]} 25... Kf7 {[%clk 0:02:04.5]} 26. g4
{[%clk 0:01:32.1]} 26... fxg4 {[%clk 0:01:44.1]} 27. Rxe4 {[%clk 0:01:32.8]}
27... Rxe4 {[%clk 0:01:44.2]} 28. Rxe4 {[%clk 0:01:33.4]} 28... Re8 {[%clk
0:01:45.5]} 29. Rxe8 {[%clk 0:01:26.1]} 29... Kxe8 {[%clk 0:01:46.2]} 30. Bxg7
{[%clk 0:01:27.2]} 30... Bf4 {[%clk 0:01:44.7]} 31. Kd3 {[%clk 0:01:17.6]} 31...
Kf7 {[%clk 0:01:43.3]} 32. Ke4 {[%clk 0:01:11.6]} 32... Bg5 {[%clk 0:01:32.4]}
33. Be5 {[%clk 0:01:06]} 33... Bf6 {[%clk 0:01:09.8]} 34. Bxf6 {[%clk
0:00:55.9]} 34... Kxf6 {[%clk 0:01:10.5]} 35. Kf4 {[%clk 0:00:57.2]} 35... b5
{[%clk 0:01:11.7]} 36. c5 {[%clk 0:00:50]} 1-0

[Event "*** Titled Tuesday Blitz"]
[Site "Chess.com"]
[Date "2019.02.05"]
[Round "9"]
[White "Muisback26"]
[Black "GMBenjaminBok"]
[Result "0-1"]
[WhiteElo "2866"]
[BlackElo "2878"]
[TimeControl "180+2"]
[EndTime "15:12:04 PST"]
[Termination "GMBenjaminBok won by resignation"]

1. e4 {[%clk 0:03:01.9]} 1... c5 {[%clk 0:03:01]} 2. Nf3 {[%clk 0:03:02.8]} 2...
d6 {[%clk 0:03:02.5]} 3. d4 {[%clk 0:03:03.1]} 3... cxd4 {[%clk 0:03:04.4]} 4.
Nxd4 {[%clk 0:03:04.6]} 4... Nf6 {[%clk 0:03:05.9]} 5. Nc3 {[%clk 0:03:05.9]}
5... a6 {[%clk 0:03:07.4]} 6. Bg5 {[%clk 0:03:06.9]} 6... Nbd7 {[%clk 0:03:08]}
7. Qe2 {[%clk 0:03:05.7]} 7... h6 {[%clk 0:03:09.2]} 8. Bh4 {[%clk 0:03:06.3]}
8... g6 {[%clk 0:03:10.7]} 9. f4 {[%clk 0:03:06.7]} 9... e5 {[%clk 0:03:11.5]}
10. fxe5 {[%clk 0:03:07.3]} 10... dxe5 {[%clk 0:03:13.1]} 11. O-O-O {[%clk
0:03:07.7]} 11... Qc7 {[%clk 0:03:14.4]} 12. Nd5 {[%clk 0:03:07.8]} 12... Nxd5
{[%clk 0:03:07]} 13. exd5 {[%clk 0:03:09.7]} 13... Bd6 {[%clk 0:03:03.6]} 14.
Kb1 {[%clk 0:02:49.6]} 14... O-O {[%clk 0:03:01.1]} 15. Nb3 {[%clk 0:01:37.1]}
15... Nb6 {[%clk 0:02:57.4]} 16. Qe3 {[%clk 0:01:33.5]} 16... Bf5 {[%clk
0:02:53]} 17. Bd3 {[%clk 0:00:51.3]} 17... Nxd5 {[%clk 0:02:42.4]} 18. Qxh6
{[%clk 0:00:49.2]} 18... e4 {[%clk 0:02:41.6]} 19. Be2 {[%clk 0:00:22.9]} 19...
Bf4 {[%clk 0:01:33.7]} 20. Bg5 {[%clk 0:00:23.6]} 20... Bxg5 {[%clk 0:01:06.2]}
21. Qxg5 {[%clk 0:00:25.5]} 21... Nb4 {[%clk 0:01:06.3]} 22. Nd4 {[%clk
0:00:25]} 22... e3 {[%clk 0:01:03.1]} 23. Rc1 {[%clk 0:00:13.8]} 23... Qa5
{[%clk 0:00:55.3]} 24. Bc4 {[%clk 0:00:07.4]} 24... Bxc2+ {[%clk 0:00:54.9]} 25.
Nxc2 {[%clk 0:00:08.6]} 25... Qxg5 {[%clk 0:00:55.2]} 26. Nxb4 {[%clk
0:00:10.5]} 26... Rac8 {[%clk 0:00:53.7]} 27. Bd3 {[%clk 0:00:09.3]} 27... Rfd8
{[%clk 0:00:50.9]} 0-1

[Event "*** Titled Tuesday Blitz"]
[Site "Chess.com"]
[Date "2019.02.05"]
[Round "9"]
[White "NoGalloNoParty"]
[Black "AsaHoffmann"]
[Result "0-1"]
[WhiteElo "2314"]
[BlackElo "2210"]
[TimeControl "180+2"]
[EndTime "15:12:12 PST"]
[Termination "AsaHoffmann won by resignation"]

1. d4 {[%clk 0:02:33.2]} 1... Nf6 {[%clk 0:02:58.8]} 2. Nf3 {[%clk 0:02:34.1]}
2... d6 {[%clk 0:02:59.3]} 3. c4 {[%clk 0:02:35.3]} 3... c6 {[%clk 0:02:59.8]}
4. g3 {[%clk 0:02:36.1]} 4... Bf5 {[%clk 0:03:00]} 5. Bg2 {[%clk 0:02:34.4]}
5... h6 {[%clk 0:03:00.7]} 6. O-O {[%clk 0:02:34.1]} 6... Nbd7 {[%clk
0:03:01.1]} 7. Nc3 {[%clk 0:02:35.9]} 7... e5 {[%clk 0:03:01.2]} 8. Nh4 {[%clk
0:02:08]} 8... Bh7 {[%clk 0:03:00.9]} 9. e4 {[%clk 0:02:08.6]} 9... Be7 {[%clk
0:02:51.3]} 10. d5 {[%clk 0:02:00.9]} 10... Nc5 {[%clk 0:02:49.8]} 11. Re1
{[%clk 0:02:00.1]} 11... a5 {[%clk 0:02:49.8]} 12. b3 {[%clk 0:01:55.8]} 12...
O-O {[%clk 0:02:49.4]} 13. a3 {[%clk 0:01:56.4]} 13... cxd5 {[%clk 0:02:46.5]}
14. cxd5 {[%clk 0:01:54.3]} 14... Rc8 {[%clk 0:02:46.5]} 15. Bd2 {[%clk
0:01:43.5]} 15... Qd7 {[%clk 0:02:38.7]} 16. Rb1 {[%clk 0:01:19.7]} 16... b5
{[%clk 0:02:36.4]} 17. b4 {[%clk 0:01:19.5]} 17... axb4 {[%clk 0:02:35.5]} 18.
axb4 {[%clk 0:01:20.5]} 18... Na4 {[%clk 0:02:35.5]} 19. Nxa4 {[%clk 0:01:20.3]}
19... bxa4 {[%clk 0:02:36.2]} 20. b5 {[%clk 0:01:15.2]} 20... Ra8 {[%clk
0:02:35.5]} 21. Bb4 {[%clk 0:01:05.6]} 21... Rfb8 {[%clk 0:02:27.9]} 22. Qe2
{[%clk 0:00:30.3]} 22... Qxb5 {[%clk 0:02:17.9]} 23. Qf3 {[%clk 0:00:24.4]}
23... Qxb4 {[%clk 0:02:12.7]} 24. Rxb4 {[%clk 0:00:24.7]} 24... Rxb4 {[%clk
0:02:12.4]} 25. Nf5 {[%clk 0:00:18.6]} 25... Bf8 {[%clk 0:02:08.4]} 26. Ra1
{[%clk 0:00:17.3]} 26... Nxe4 {[%clk 0:02:06.6]} 27. Qg4 {[%clk 0:00:15.3]}
27... Bxf5 {[%clk 0:01:53.4]} 28. Qxf5 {[%clk 0:00:16]} 28... Nf6 {[%clk
0:01:52.7]} 29. Qc2 {[%clk 0:00:15.2]} 29... a3 {[%clk 0:01:51.9]} 30. h3 {[%clk
0:00:13.1]} 30... Rb2 {[%clk 0:01:44.8]} 31. Qc3 {[%clk 0:00:13.1]} 31... Rab8
{[%clk 0:01:27.8]} 32. Rxa3 {[%clk 0:00:13.9]} 32... e4 {[%clk 0:01:26]} 33. Kh2
{[%clk 0:00:14.9]} 33... Rxf2 {[%clk 0:01:25.3]} 34. Qd4 {[%clk 0:00:15.6]}
34... Rbb2 {[%clk 0:01:18]} 35. Ra8 {[%clk 0:00:15.4]} 35... Rxg2+ {[%clk
0:01:17.7]} 36. Kh1 {[%clk 0:00:16.9]} 36... Rgd2 {[%clk 0:01:16]} 0-1

[Event "*** Titled Tuesday Blitz"]
[Site "Chess.com"]
[Date "2019.02.05"]
[Round "9"]
[White "FelixBlohberger"]
[Black "sergoy"]
[Result "1/2-1/2"]
[WhiteElo "2674"]
[BlackElo "2803"]
[TimeControl "180+2"]
[EndTime "15:12:21 PST"]
[Termination "Game drawn by repetition"]

1. d4 {[%clk 0:03:01.9]} 1... Nf6 {[%clk 0:03:00.1]} 2. Nf3 {[%clk 0:02:57.2]}
2... e6 {[%clk 0:03:01.3]} 3. Bf4 {[%clk 0:02:57.5]} 3... c5 {[%clk 0:03:01.5]}
4. e3 {[%clk 0:02:58.1]} 4... Nc6 {[%clk 0:03:02.7]} 5. Nbd2 {[%clk 0:02:58.2]}
5... d5 {[%clk 0:03:03.4]} 6. c3 {[%clk 0:02:58.2]} 6... cxd4 {[%clk 0:03:04.9]}
7. exd4 {[%clk 0:02:59.1]} 7... Nh5 {[%clk 0:03:05]} 8. Be3 {[%clk 0:02:56.6]}
8... Bd6 {[%clk 0:03:05.8]} 9. Bd3 {[%clk 0:02:57.5]} 9... Nf4 {[%clk 0:03:06]}
10. Bxf4 {[%clk 0:02:58.7]} 10... Bxf4 {[%clk 0:03:06.7]} 11. O-O {[%clk
0:02:59.9]} 11... O-O {[%clk 0:03:06.3]} 12. g3 {[%clk 0:02:59.5]} 12... Bh6
{[%clk 0:03:07.1]} 13. h4 {[%clk 0:02:56.6]} 13... g6 {[%clk 0:03:07.3]} 14. Re1
{[%clk 0:02:54.8]} 14... Rb8 {[%clk 0:03:02.8]} 15. a4 {[%clk 0:02:52.5]} 15...
Bd7 {[%clk 0:03:00.4]} 16. Nf1 {[%clk 0:02:51.4]} 16... f6 {[%clk 0:02:58.4]}
17. N1h2 {[%clk 0:02:48.2]} 17... f5 {[%clk 0:02:58.4]} 18. Ne5 {[%clk 0:02:38]}
18... Nxe5 {[%clk 0:02:58.9]} 19. Rxe5 {[%clk 0:02:39.9]} 19... f4 {[%clk
0:02:57.8]} 20. Ng4 {[%clk 0:02:35.3]} 20... Bg7 {[%clk 0:02:58.1]} 21. Re1
{[%clk 0:02:35.2]} 21... fxg3 {[%clk 0:02:45.1]} 22. fxg3 {[%clk 0:02:35.2]}
22... b5 {[%clk 0:02:43.2]} 23. axb5 {[%clk 0:02:13.9]} 23... Bxb5 {[%clk
0:02:45.1]} 24. Bxb5 {[%clk 0:02:02.2]} 24... Rxb5 {[%clk 0:02:47]} 25. Qe2
{[%clk 0:02:03.3]} 25... Qb8 {[%clk 0:02:46.5]} 26. Qxe6+ {[%clk 0:01:48.6]}
26... Kh8 {[%clk 0:02:46.9]} 27. Ne5 {[%clk 0:01:45]} 27... Rxb2 {[%clk
0:02:47.1]} 28. Rf1 {[%clk 0:01:23]} 28... Rb6 {[%clk 0:02:07.2]} 29. Rxf8+
{[%clk 0:00:49.1]} 29... Qxf8 {[%clk 0:02:05.6]} 30. Nf7+ {[%clk 0:00:32]} 30...
Kg8 {[%clk 0:01:58.2]} 31. Nd6+ {[%clk 0:00:32.8]} 31... Kh8 {[%clk 0:01:55.6]}
32. Rf1 {[%clk 0:00:23.6]} 32... Qb8 {[%clk 0:01:39.8]} 33. Nf7+ {[%clk
0:00:20.5]} 33... Kg8 {[%clk 0:01:40.6]} 34. Nd6+ {[%clk 0:00:20.1]} 34... Kh8
{[%clk 0:01:39.8]} 35. Nf7+ {[%clk 0:00:09.2]} 35... Kg8 {[%clk 0:01:40.6]} 36.
Nd6+ {[%clk 0:00:06.8]} 36... Kh8 {[%clk 0:01:41.7]} 37. Nf7+ {[%clk 0:00:07.8]}
37... Kg8 {[%clk 0:01:40.8]} 38. Nd6+ {[%clk 0:00:09]} 38... Kh8 {[%clk
0:01:41.9]} 39. Nf7+ {[%clk 0:00:10.2]} 39... Kg8 {[%clk 0:01:41.5]} 40. Nd6+
{[%clk 0:00:11.6]} 40... Kh8 {[%clk 0:01:38.1]} 1/2-1/2